[Event "Titled Tuesday Blitz April 4 Late 2023"]
[White "Chigaev, Maksim"]
[Black "Svane, Rasmus"]
[WhiteFideId "4108116"]
[BlackFideId "4657101"]
[WhiteElo "2547"]
[BlackElo "2597"]
[Result "1-0"]
[Round "08"]
[TimeControl "180+2"]
[Date "2023.04.04"]
[WhiteClock "0:00:09"]
[BlackClock "0:00:04"]

1. e4 {[%clk 0:02:56]}  c6 {[%clk 0:03:00]} 2. Nf3 {[%clk 0:02:55]}  d5 {[%clk 0:03:01]} 3. d3 {[%clk 0:02:55]}  dxe4 {[%clk 0:03:01]} 4. dxe4 {[%clk 0:02:56]}  Qxd1+ {[%clk 0:03:01]} 5. Kxd1 {[%clk 0:02:57]}  Nf6 {[%clk 0:03:01]} 6. Nbd2 {[%clk 0:02:58]}  g6 {[%clk 0:03:00]} 7. Ne5 {[%clk 0:02:58]}  Bh6 {[%clk 0:02:49]} 8. f3 {[%clk 0:02:57]}  Be6 {[%clk 0:02:49]} 9. Nd3 {[%clk 0:02:54]}  Na6 {[%clk 0:02:36]} 10. c3 {[%clk 0:02:50]}  O-O-O {[%clk 0:02:35]} 11. Kc2 {[%clk 0:02:51]}  Nd7 {[%clk 0:02:31]} 12. Nb3 {[%clk 0:02:43]}  Bxc1 {[%clk 0:02:28]} 13. Rxc1 {[%clk 0:02:44]}  Bxb3+ {[%clk 0:02:27]} 14. axb3 {[%clk 0:02:43]}  Nac5 {[%clk 0:02:27]} 15. b4 {[%clk 0:02:33]}  Nxd3 {[%clk 0:02:26]} 16. Bxd3 {[%clk 0:02:34]}  Ne5 {[%clk 0:02:25]} 17. Be2 {[%clk 0:02:34]}  g5 {[%clk 0:02:26]} 18. g3 {[%clk 0:02:30]}  Rd6 {[%clk 0:02:09]} 19. f4 {[%clk 0:02:10]}  Rhd8 {[%clk 0:02:04]} 20. Rcd1 {[%clk 0:02:08]}  Rxd1 {[%clk 0:02:00]} 21. Bxd1 {[%clk 0:02:06]}  gxf4 {[%clk 0:01:59]} 22. gxf4 {[%clk 0:02:07]}  Nc4 {[%clk 0:01:55]} 23. Kc1 {[%clk 0:01:41]}  Rg8 {[%clk 0:01:36]} 24. Bf3 {[%clk 0:01:27]}  f6 {[%clk 0:01:27]} 25. b3 {[%clk 0:01:09]}  Nd6 {[%clk 0:01:27]} 26. Kd2 {[%clk 0:01:07]}  e5 {[%clk 0:01:24]} 27. Ke3 {[%clk 0:01:07]}  Kd7 {[%clk 0:01:22]} 28. Rd1 {[%clk 0:00:58]}  Ke7 {[%clk 0:01:21]} 29. f5 {[%clk 0:00:41]}  Nb5 {[%clk 0:01:20]} 30. Rc1 {[%clk 0:00:33]}  Rg5 {[%clk 0:01:07]} 31. h4 {[%clk 0:00:26]}  Rg3 {[%clk 0:01:04]} 32. Kf2 {[%clk 0:00:26]}  Rg8 {[%clk 0:01:05]} 33. Rc2 {[%clk 0:00:24]}  Ra8 {[%clk 0:01:03]} 34. Be2 {[%clk 0:00:19]}  Nd6 {[%clk 0:01:02]} 35. Bd3 {[%clk 0:00:20]}  Rg8 {[%clk 0:00:59]} 36. Kf3 {[%clk 0:00:12]}  a6 {[%clk 0:00:40]} 37. c4 {[%clk 0:00:13]}  Nc8 {[%clk 0:00:29]} 38. c5 {[%clk 0:00:12]}  Na7 {[%clk 0:00:25]} 39. Bc4 {[%clk 0:00:13]}  Rg7 {[%clk 0:00:22]} 40. Rd2 {[%clk 0:00:09]}  Ke8 {[%clk 0:00:20]} 41. Rd6 {[%clk 0:00:09]}  Rg1 {[%clk 0:00:03]} 42. Rxf6 {[%clk 0:00:08]}  Nb5 {[%clk 0:00:03]} 43. Bxb5 {[%clk 0:00:09]}  axb5 {[%clk 0:00:04]} 44. Re6+ {[%clk 0:00:09]}  Kf7 {[%clk 0:00:04]} 45. Rxe5 {[%clk 0:00:10]}  Rb1 {[%clk 0:00:05]} 46. Re6 {[%clk 0:00:08]}  Rxb3+ {[%clk 0:00:05]} 47. Kf4 {[%clk 0:00:09]}  Rxb4 {[%clk 0:00:06]} 48. Rh6 {[%clk 0:00:09]}  Kg7 {[%clk 0:00:06]} 49. Rd6 {[%clk 0:00:10]}  Rc4 {[%clk 0:00:05]} 50. Rd7+ {[%clk 0:00:08]}  Kf6 {[%clk 0:00:05]} 51. Rxh7 {[%clk 0:00:07]}  b4 {[%clk 0:00:03]} 52. Rxb7 {[%clk 0:00:07]}  Rxc5 {[%clk 0:00:02]} 53. Rxb4 {[%clk 0:00:06]}  Rc1 {[%clk 0:00:02]} 54. e5+ {[%clk 0:00:06]}  Ke7 {[%clk 0:00:02]} 55. Rb7+ {[%clk 0:00:07]}  Kd8 {[%clk 0:00:03]} 56. f6 {[%clk 0:00:08]}  Rf1+ {[%clk 0:00:03]} 57. Kg5 {[%clk 0:00:08]}  c5 {[%clk 0:00:04]} 58. e6 {[%clk 0:00:08]}  c4 {[%clk 0:00:03]} 59. e7+ {[%clk 0:00:09]}  Ke8 {[%clk 0:00:03]} 60. Rb8+ {[%clk 0:00:09]}  Kd7 {[%clk 0:00:04]} 61. Rd8+ {[%clk 0:00:09]} 1-0


[Site "https://www.chess.com"]

[Event "Titled Tuesday Blitz April 4 Late 2023"]
[White "Hakobyan, Aram"]
[Black "Yeletsky, Ivan"]
[WhiteFideId "13306677"]
[BlackFideId "24180327"]
[WhiteElo "2584"]
[BlackElo "2422"]
[Result "1-0"]
[Round "08"]
[TimeControl "180+2"]
[Date "2023.04.04"]
[WhiteClock "0:00:15"]
[BlackClock "0:00:06"]

1. d4 {[%clk 0:03:00]}  Nf6 {[%clk 0:02:57]} 2. c4 {[%clk 0:03:01]}  e6 {[%clk 0:02:55]} 3. Nc3 {[%clk 0:03:01]}  Bb4 {[%clk 0:02:54]} 4. e3 {[%clk 0:03:02]}  c5 {[%clk 0:02:53]} 5. Ne2 {[%clk 0:03:02]}  d6 {[%clk 0:02:53]} 6. a3 {[%clk 0:03:02]}  Ba5 {[%clk 0:02:53]} 7. dxc5 {[%clk 0:03:01]}  dxc5 {[%clk 0:02:53]} 8. Qxd8+ {[%clk 0:03:02]}  Bxd8 {[%clk 0:02:52]} 9. Bd2 {[%clk 0:03:02]}  Nbd7 {[%clk 0:02:45]} 10. Nf4 {[%clk 0:02:54]}  Ne5 {[%clk 0:02:44]} 11. Be2 {[%clk 0:02:55]}  b6 {[%clk 0:02:40]} 12. Nb5 {[%clk 0:02:52]}  Ke7 {[%clk 0:02:37]} 13. Bc3 {[%clk 0:02:50]}  Nfd7 {[%clk 0:02:38]} 14. O-O-O {[%clk 0:02:47]}  Bb7 {[%clk 0:02:29]} 15. f3 {[%clk 0:02:41]}  a6 {[%clk 0:02:25]} 16. Nd6 {[%clk 0:02:39]}  Bc6 {[%clk 0:02:25]} 17. Nd3 {[%clk 0:02:10]}  f6 {[%clk 0:02:16]} 18. Nxe5 {[%clk 0:01:48]}  Nxe5 {[%clk 0:02:16]} 19. f4 {[%clk 0:01:49]}  Nd7 {[%clk 0:02:06]} 20. Bf3 {[%clk 0:01:49]}  Bxf3 {[%clk 0:02:02]} 21. gxf3 {[%clk 0:01:50]}  Bc7 {[%clk 0:02:02]} 22. Rhg1 {[%clk 0:01:49]}  Rhg8 {[%clk 0:02:00]} 23. Ne4 {[%clk 0:01:48]}  h6 {[%clk 0:01:41]} 24. h4 {[%clk 0:01:43]}  h5 {[%clk 0:01:18]} 25. Ng3 {[%clk 0:01:39]}  g6 {[%clk 0:01:17]} 26. Ne4 {[%clk 0:01:39]}  f5 {[%clk 0:00:52]} 27. Ng5 {[%clk 0:01:34]}  Rad8 {[%clk 0:00:52]} 28. b4 {[%clk 0:01:21]}  e5 {[%clk 0:00:46]} 29. Kc2 {[%clk 0:01:14]}  Rge8 {[%clk 0:00:38]} 30. Rd5 {[%clk 0:01:05]}  exf4 {[%clk 0:00:36]} 31. exf4 {[%clk 0:01:06]}  Kf8 {[%clk 0:00:21]} 32. Rgd1 {[%clk 0:00:47]}  Nb8 {[%clk 0:00:20]} 33. bxc5 {[%clk 0:00:43]}  bxc5 {[%clk 0:00:21]} 34. Rxd8 {[%clk 0:00:23]}  Bxd8 {[%clk 0:00:22]} 35. Rd6 {[%clk 0:00:23]}  Bxg5 {[%clk 0:00:09]} 36. fxg5 {[%clk 0:00:24]}  Re3 {[%clk 0:00:09]} 37. Bd2 {[%clk 0:00:15]}  Rxa3 {[%clk 0:00:05]} 38. Rd8+ {[%clk 0:00:15]}  Kf7 {[%clk 0:00:06]} 39. Rxb8 {[%clk 0:00:16]}  Rxf3 {[%clk 0:00:06]} 40. Rb7+ {[%clk 0:00:16]}  Ke6 {[%clk 0:00:07]} 41. Rb6+ {[%clk 0:00:17]}  Kf7 {[%clk 0:00:08]} 42. Rf6+ {[%clk 0:00:17]}  Kg7 {[%clk 0:00:07]} 43. Rxa6 {[%clk 0:00:16]}  f4 {[%clk 0:00:06]} 44. Rf6 {[%clk 0:00:15]} 1-0


[Site "https://www.chess.com"]

[Event "Titled Tuesday Blitz April 4 Late 2023"]
[White "Sadhwani, Raunak"]
[Black "Urazayev, Arystanbek"]
[WhiteFideId "35093487"]
[BlackFideId "13709810"]
[WhiteElo "2631"]
[BlackElo "2449"]
[Result "1-0"]
[Round "08"]
[TimeControl "180+2"]
[Date "2023.04.04"]
[WhiteClock "0:01:07"]
[BlackClock "0:00:08"]

1. Nf3 {[%clk 0:03:00]}  d5 {[%clk 0:03:00]} 2. b3 {[%clk 0:03:01]}  Nf6 {[%clk 0:02:59]} 3. Bb2 {[%clk 0:03:02]}  e6 {[%clk 0:03:00]} 4. g3 {[%clk 0:03:02]}  Be7 {[%clk 0:03:00]} 5. Bg2 {[%clk 0:03:02]}  O-O {[%clk 0:03:01]} 6. O-O {[%clk 0:03:03]}  b6 {[%clk 0:03:02]} 7. c4 {[%clk 0:03:03]}  Bb7 {[%clk 0:03:03]} 8. e3 {[%clk 0:03:03]}  dxc4 {[%clk 0:03:03]} 9. bxc4 {[%clk 0:03:03]}  c5 {[%clk 0:03:04]} 10. Qe2 {[%clk 0:03:03]}  Be4 {[%clk 0:03:03]} 11. Ne1 {[%clk 0:02:59]}  Bxg2 {[%clk 0:03:03]} 12. Nxg2 {[%clk 0:03:00]}  Nc6 {[%clk 0:03:02]} 13. d3 {[%clk 0:02:57]}  Qc7 {[%clk 0:03:00]} 14. Nc3 {[%clk 0:02:56]}  Rad8 {[%clk 0:03:00]} 15. Rad1 {[%clk 0:02:55]}  Rd7 {[%clk 0:02:55]} 16. f4 {[%clk 0:02:55]}  Rfd8 {[%clk 0:02:55]} 17. g4 {[%clk 0:02:55]}  Nb4 {[%clk 0:02:48]} 18. g5 {[%clk 0:02:53]}  Ne8 {[%clk 0:02:48]} 19. Ne1 {[%clk 0:02:52]}  Nd6 {[%clk 0:02:42]} 20. a3 {[%clk 0:02:46]}  Nc6 {[%clk 0:02:42]} 21. Rf3 {[%clk 0:02:46]}  Nf5 {[%clk 0:02:40]} 22. Rh3 {[%clk 0:02:44]}  Bf8 {[%clk 0:02:01]} 23. Ne4 {[%clk 0:02:41]}  Nce7 {[%clk 0:01:41]} 24. Qh5 {[%clk 0:02:25]}  h6 {[%clk 0:01:42]} 25. gxh6 {[%clk 0:01:58]}  Nxh6 {[%clk 0:01:42]} 26. Qg5 {[%clk 0:01:58]}  Ng6 {[%clk 0:00:27]} 27. Rxh6 {[%clk 0:01:57]}  Be7 {[%clk 0:00:28]} 28. Rxg6 {[%clk 0:01:13]}  Bxg5 {[%clk 0:00:28]} 29. Rxg7+ {[%clk 0:01:13]}  Kf8 {[%clk 0:00:28]} 30. Rxg5 {[%clk 0:01:12]}  Qc6 {[%clk 0:00:16]} 31. Bf6 {[%clk 0:01:11]}  e5 {[%clk 0:00:08]} 32. Rh5 {[%clk 0:01:07]} 1-0


[Site "https://www.chess.com"]

[Event "Titled Tuesday Blitz April 4 Late 2023"]
[White "Castellanos Rodriguez, Renier"]
[Black "Vidit, Santosh Gujrathi"]
[WhiteFideId "3404650"]
[BlackFideId "5029465"]
[WhiteElo "2597"]
[BlackElo "2651"]
[Result "0-1"]
[Round "08"]
[TimeControl "180+2"]
[Date "2023.04.04"]
[WhiteClock "0:00:12"]
[BlackClock "0:00:57"]

1. e4 {[%clk 0:03:00]}  e6 {[%clk 0:02:58]} 2. d4 {[%clk 0:03:00]}  d5 {[%clk 0:02:58]} 3. Nd2 {[%clk 0:03:00]}  c5 {[%clk 0:02:57]} 4. exd5 {[%clk 0:03:00]}  Qxd5 {[%clk 0:02:58]} 5. Ngf3 {[%clk 0:03:00]}  cxd4 {[%clk 0:02:58]} 6. Bc4 {[%clk 0:03:01]}  Qd7 {[%clk 0:02:58]} 7. O-O {[%clk 0:02:59]}  Nc6 {[%clk 0:02:59]} 8. Re1 {[%clk 0:02:54]}  a6 {[%clk 0:02:58]} 9. a4 {[%clk 0:02:49]}  Qc7 {[%clk 0:02:57]} 10. Ne4 {[%clk 0:02:41]}  Bb4 {[%clk 0:02:46]} 11. Bd2 {[%clk 0:02:39]}  Bxd2 {[%clk 0:02:42]} 12. Qxd2 {[%clk 0:02:38]}  Nge7 {[%clk 0:02:40]} 13. Nxd4 {[%clk 0:02:35]}  Nxd4 {[%clk 0:02:39]} 14. Qxd4 {[%clk 0:02:35]}  Nf5 {[%clk 0:02:35]} 15. Qc5 {[%clk 0:01:59]}  Qxc5 {[%clk 0:02:33]} 16. Nxc5 {[%clk 0:02:00]}  b6 {[%clk 0:02:31]} 17. Nb3 {[%clk 0:01:25]}  a5 {[%clk 0:02:26]} 18. Bd3 {[%clk 0:01:09]}  Nd6 {[%clk 0:02:26]} 19. Rad1 {[%clk 0:01:07]}  Ke7 {[%clk 0:02:25]} 20. Nd4 {[%clk 0:01:06]}  Bd7 {[%clk 0:02:24]} 21. b3 {[%clk 0:01:07]}  g6 {[%clk 0:02:20]} 22. c4 {[%clk 0:01:05]}  Rad8 {[%clk 0:02:16]} 23. Bc2 {[%clk 0:01:05]}  Nb7 {[%clk 0:02:15]} 24. f4 {[%clk 0:01:01]}  Nc5 {[%clk 0:02:14]} 25. Kf2 {[%clk 0:01:01]}  h6 {[%clk 0:02:12]} 26. h4 {[%clk 0:00:57]}  Rdg8 {[%clk 0:02:04]} 27. Rd2 {[%clk 0:00:47]}  g5 {[%clk 0:01:59]} 28. hxg5 {[%clk 0:00:45]}  hxg5 {[%clk 0:02:00]} 29. f5 {[%clk 0:00:45]}  Kf6 {[%clk 0:01:53]} 30. fxe6 {[%clk 0:00:45]}  fxe6 {[%clk 0:01:54]} 31. Nf3 {[%clk 0:00:42]}  g4 {[%clk 0:01:35]} 32. Ne5 {[%clk 0:00:39]}  g3+ {[%clk 0:01:36]} 33. Kf3 {[%clk 0:00:33]}  Bc8 {[%clk 0:01:36]} 34. Ng4+ {[%clk 0:00:18]}  Ke7 {[%clk 0:01:30]} 35. Ne5 {[%clk 0:00:13]}  Rh5 {[%clk 0:01:01]} 36. Ng6+ {[%clk 0:00:13]}  Kf6 {[%clk 0:01:01]} 37. Nf4 {[%clk 0:00:13]}  Bb7+ {[%clk 0:00:59]} 38. Ke3 {[%clk 0:00:12]}  Re5+ {[%clk 0:00:57]} 0-1


[Site "https://www.chess.com"]

[Event "Titled Tuesday Blitz April 4 Late 2023"]
[White "Gokerkan, Cem Kaan"]
[Black "Martinez Alcantara, Jose Eduardo"]
[WhiteFideId "6336760"]
[BlackFideId "3805662"]
[WhiteElo "2365"]
[BlackElo "2711"]
[Result "0-1"]
[Round "08"]
[TimeControl "180+2"]
[Date "2023.04.04"]
[WhiteClock "0:00:02"]
[BlackClock "0:00:03"]

1. e4 {[%clk 0:03:00]}  c5 {[%clk 0:02:59]} 2. Nf3 {[%clk 0:02:58]}  d6 {[%clk 0:02:58]} 3. d4 {[%clk 0:02:59]}  cxd4 {[%clk 0:02:59]} 4. Nxd4 {[%clk 0:03:00]}  Nf6 {[%clk 0:02:58]} 5. Nc3 {[%clk 0:03:00]}  a6 {[%clk 0:02:58]} 6. Rg1 {[%clk 0:03:00]}  b5 {[%clk 0:02:56]} 7. g4 {[%clk 0:03:00]}  Bb7 {[%clk 0:02:54]} 8. Bg2 {[%clk 0:02:45]}  Nfd7 {[%clk 0:02:45]} 9. g5 {[%clk 0:02:36]}  e6 {[%clk 0:02:39]} 10. Be3 {[%clk 0:02:31]}  Nb6 {[%clk 0:02:34]} 11. Qe2 {[%clk 0:02:29]}  N8d7 {[%clk 0:02:31]} 12. O-O-O {[%clk 0:02:29]}  Rc8 {[%clk 0:02:30]} 13. Qe1 {[%clk 0:01:54]}  Qc7 {[%clk 0:02:13]} 14. Kb1 {[%clk 0:01:33]}  Nc4 {[%clk 0:02:03]} 15. Bc1 {[%clk 0:01:12]}  Be7 {[%clk 0:01:47]} 16. Nd5 {[%clk 0:01:07]}  exd5 {[%clk 0:01:35]} 17. exd5 {[%clk 0:01:08]}  O-O {[%clk 0:01:26]} 18. Nf5 {[%clk 0:00:59]}  Nde5 {[%clk 0:00:59]} 19. f4 {[%clk 0:00:57]}  Na3+ {[%clk 0:00:59]} 20. bxa3 {[%clk 0:00:54]}  Qxc2+ {[%clk 0:01:00]} 21. Ka1 {[%clk 0:00:55]}  Qxf5 {[%clk 0:00:59]} 22. fxe5 {[%clk 0:00:24]}  Bxg5 {[%clk 0:00:53]} 23. Be4 {[%clk 0:00:20]}  Qxe5+ {[%clk 0:00:51]} 24. Bb2 {[%clk 0:00:20]}  Qf4 {[%clk 0:00:43]} 25. Rd4 {[%clk 0:00:19]}  Rfe8 {[%clk 0:00:35]} 26. Qb1 {[%clk 0:00:19]}  Qe3 {[%clk 0:00:30]} 27. Bxh7+ {[%clk 0:00:18]}  Kf8 {[%clk 0:00:29]} 28. Rd3 {[%clk 0:00:17]}  Qf4 {[%clk 0:00:24]} 29. Rd4 {[%clk 0:00:14]}  Qe3 {[%clk 0:00:24]} 30. Rd3 {[%clk 0:00:15]}  Qf4 {[%clk 0:00:24]} 31. Rd4 {[%clk 0:00:09]}  Qf6 {[%clk 0:00:16]} 32. Rb4 {[%clk 0:00:04]}  Qh6 {[%clk 0:00:15]} 33. Rbg4 {[%clk 0:00:02]}  Bf6 {[%clk 0:00:15]} 34. Rxg7 {[%clk 0:00:02]}  Re2 {[%clk 0:00:04]} 35. Rg8+ {[%clk 0:00:02]}  Ke7 {[%clk 0:00:04]} 36. Re1 {[%clk 0:00:02]}  Bxb2+ {[%clk 0:00:03]} 0-1


[Site "https://www.chess.com"]

[Event "Titled Tuesday Blitz April 4 Late 2023"]
[White "Movahed, Sina"]
[Black "Kilic, Eray"]
[WhiteFideId "42520835"]
[BlackFideId "44517173"]
[WhiteElo "2225"]
[BlackElo "2328"]
[Result "0-1"]
[Round "08"]
[TimeControl "180+2"]
[Date "2023.04.04"]
[WhiteClock "0:00:02"]
[BlackClock "0:00:22"]

1. e4 {[%clk 0:03:00]}  c5 {[%clk 0:02:59]} 2. Nf3 {[%clk 0:03:00]}  d6 {[%clk 0:02:59]} 3. d4 {[%clk 0:02:59]}  cxd4 {[%clk 0:03:00]} 4. Nxd4 {[%clk 0:03:00]}  Nf6 {[%clk 0:03:01]} 5. Nc3 {[%clk 0:03:01]}  a6 {[%clk 0:03:01]} 6. Bg5 {[%clk 0:03:01]}  e6 {[%clk 0:03:01]} 7. f4 {[%clk 0:03:02]}  Be7 {[%clk 0:03:01]} 8. Qf3 {[%clk 0:03:01]}  Qc7 {[%clk 0:03:02]} 9. O-O-O {[%clk 0:03:02]}  Nbd7 {[%clk 0:03:02]} 10. Bd3 {[%clk 0:03:01]}  h6 {[%clk 0:03:00]} 11. Bh4 {[%clk 0:03:02]}  b5 {[%clk 0:02:53]} 12. Qg3 {[%clk 0:02:54]}  Rg8 {[%clk 0:02:51]} 13. f5 {[%clk 0:02:33]}  e5 {[%clk 0:02:47]} 14. Nf3 {[%clk 0:02:24]}  Bb7 {[%clk 0:02:44]} 15. a3 {[%clk 0:02:15]}  O-O-O {[%clk 0:02:38]} 16. Rhe1 {[%clk 0:02:11]}  Kb8 {[%clk 0:02:34]} 17. Bxf6 {[%clk 0:02:03]}  Bxf6 {[%clk 0:02:33]} 18. Bf1 {[%clk 0:01:57]}  Nb6 {[%clk 0:02:33]} 19. Re3 {[%clk 0:01:39]}  Rge8 {[%clk 0:01:58]} 20. Kb1 {[%clk 0:01:32]}  d5 {[%clk 0:01:53]} 21. exd5 {[%clk 0:01:30]}  Nxd5 {[%clk 0:01:54]} 22. Nxd5 {[%clk 0:01:29]}  Bxd5 {[%clk 0:01:55]} 23. Qe1 {[%clk 0:01:24]}  e4 {[%clk 0:01:48]} 24. Nd2 {[%clk 0:01:13]}  Qe5 {[%clk 0:01:46]} 25. c3 {[%clk 0:01:09]}  Bg5 {[%clk 0:01:44]} 26. Nf3 {[%clk 0:01:05]}  Qxf5 {[%clk 0:01:30]} 27. Nxg5 {[%clk 0:01:00]}  Qxg5 {[%clk 0:01:30]} 28. a4 {[%clk 0:00:45]}  Bb3 {[%clk 0:01:09]} 29. Rd4 {[%clk 0:00:41]}  bxa4 {[%clk 0:00:48]} 30. Bxa6 {[%clk 0:00:20]}  Qa5 {[%clk 0:00:45]} 31. Qg3+ {[%clk 0:00:16]}  Ka7 {[%clk 0:00:43]} 32. Be2 {[%clk 0:00:11]}  Rxd4 {[%clk 0:00:41]} 33. cxd4 {[%clk 0:00:12]}  Rc8 {[%clk 0:00:29]} 34. Rc3 {[%clk 0:00:12]}  Rxc3 {[%clk 0:00:29]} 35. bxc3 {[%clk 0:00:12]}  Qb6 {[%clk 0:00:21]} 36. Ka1 {[%clk 0:00:05]}  a3 {[%clk 0:00:20]} 37. Qe3 {[%clk 0:00:04]}  Bc4 {[%clk 0:00:20]} 38. Qd2 {[%clk 0:00:03]}  e3 {[%clk 0:00:20]} 39. Qc2 {[%clk 0:00:01]}  Qb2+ {[%clk 0:00:20]} 40. Qxb2 {[%clk 0:00:02]}  axb2+ {[%clk 0:00:21]} 41. Kxb2 {[%clk 0:00:02]}  Bxe2 {[%clk 0:00:22]} 0-1


[Site "https://www.chess.com"]

[Event "Titled Tuesday Blitz April 4 Late 2023"]
[White "Aydincelebi, Kagan"]
[Black "Durarbayli, Vasif"]
[WhiteFideId "6361102"]
[BlackFideId "13402935"]
[WhiteElo "2180"]
[BlackElo "2551"]
[Result "1-0"]
[Round "08"]
[TimeControl "180+2"]
[Date "2023.04.04"]
[WhiteClock "0:00:16"]
[BlackClock "0:00:02"]

1. e4 {[%clk 0:03:00]}  c5 {[%clk 0:02:59]} 2. Nf3 {[%clk 0:03:01]}  d6 {[%clk 0:03:00]} 3. Bb5+ {[%clk 0:03:01]}  Nd7 {[%clk 0:03:00]} 4. O-O {[%clk 0:03:01]}  a6 {[%clk 0:03:00]} 5. Bd3 {[%clk 0:03:01]}  Ngf6 {[%clk 0:02:56]} 6. Re1 {[%clk 0:03:01]}  e6 {[%clk 0:02:56]} 7. c3 {[%clk 0:03:01]}  b5 {[%clk 0:02:57]} 8. Bc2 {[%clk 0:03:02]}  c4 {[%clk 0:02:57]} 9. b3 {[%clk 0:02:59]}  Bb7 {[%clk 0:02:50]} 10. Na3 {[%clk 0:02:56]}  Qc7 {[%clk 0:02:48]} 11. Qe2 {[%clk 0:02:51]}  Rc8 {[%clk 0:02:46]} 12. bxc4 {[%clk 0:02:32]}  bxc4 {[%clk 0:02:47]} 13. Rb1 {[%clk 0:02:31]}  Be7 {[%clk 0:01:59]} 14. Nxc4 {[%clk 0:02:18]}  Bxe4 {[%clk 0:01:59]} 15. Nxd6+ {[%clk 0:02:15]}  Qxd6 {[%clk 0:01:52]} 16. Bxe4 {[%clk 0:02:16]}  Nxe4 {[%clk 0:01:53]} 17. Qxe4 {[%clk 0:02:17]}  Nc5 {[%clk 0:01:54]} 18. Qe5 {[%clk 0:02:12]}  Qxe5 {[%clk 0:01:46]} 19. Nxe5 {[%clk 0:02:12]}  f6 {[%clk 0:01:44]} 20. Nf3 {[%clk 0:01:55]}  Kf7 {[%clk 0:01:41]} 21. Re3 {[%clk 0:01:50]}  Rb8 {[%clk 0:01:36]} 22. Ra1 {[%clk 0:01:30]}  Na4 {[%clk 0:01:18]} 23. d4 {[%clk 0:01:22]}  Rhc8 {[%clk 0:01:17]} 24. Bd2 {[%clk 0:01:23]}  Rb2 {[%clk 0:01:16]} 25. Rae1 {[%clk 0:01:23]}  e5 {[%clk 0:00:46]} 26. dxe5 {[%clk 0:01:20]}  Rxa2 {[%clk 0:00:47]} 27. e6+ {[%clk 0:01:17]}  Ke8 {[%clk 0:00:42]} 28. h4 {[%clk 0:01:08]}  a5 {[%clk 0:00:40]} 29. h5 {[%clk 0:01:01]}  Nb6 {[%clk 0:00:29]} 30. Rd3 {[%clk 0:00:59]}  a4 {[%clk 0:00:23]} 31. Nd4 {[%clk 0:00:58]}  Rc5 {[%clk 0:00:21]} 32. g4 {[%clk 0:00:56]}  a3 {[%clk 0:00:18]} 33. Nf5 {[%clk 0:00:52]}  g5 {[%clk 0:00:12]} 34. Be3 {[%clk 0:00:41]}  Rd5 {[%clk 0:00:10]} 35. Red1 {[%clk 0:00:37]}  Rxd3 {[%clk 0:00:07]} 36. Rxd3 {[%clk 0:00:38]}  Ra1+ {[%clk 0:00:07]} 37. Kg2 {[%clk 0:00:38]}  a2 {[%clk 0:00:06]} 38. Bxb6 {[%clk 0:00:23]}  Rb1 {[%clk 0:00:06]} 39. Rd7 {[%clk 0:00:23]}  a1=Q {[%clk 0:00:01]} 40. Rxe7+ {[%clk 0:00:22]}  Kf8 {[%clk 0:00:02]} 41. Rf7+ {[%clk 0:00:22]}  Kg8 {[%clk 0:00:03]} 42. Ne7+ {[%clk 0:00:14]}  Kh8 {[%clk 0:00:03]} 43. Rf8+ {[%clk 0:00:14]}  Kg7 {[%clk 0:00:03]} 44. Rg8+ {[%clk 0:00:15]}  Kh6 {[%clk 0:00:02]} 45. Nf5# {[%clk 0:00:16]} 1-0


[Site "https://www.chess.com"]

[Event "Titled Tuesday Blitz April 4 Late 2023"]
[White "Li, Ruifeng"]
[Black "Matinian, Nikita"]
[WhiteFideId "2061074"]
[BlackFideId "24129100"]
[WhiteElo "2441"]
[BlackElo "2422"]
[Result "1/2-1/2"]
[Round "08"]
[TimeControl "180+2"]
[Date "2023.04.04"]
[WhiteClock "0:00:05"]
[BlackClock "0:00:03"]

1. b3 {[%clk 0:03:00]}  g6 {[%clk 0:02:58]} 2. Bb2 {[%clk 0:03:01]}  Nf6 {[%clk 0:02:59]} 3. g4 {[%clk 0:03:01]}  Bg7 {[%clk 0:02:56]} 4. g5 {[%clk 0:03:01]}  Nh5 {[%clk 0:02:56]} 5. Bxg7 {[%clk 0:03:02]}  Nxg7 {[%clk 0:02:57]} 6. d4 {[%clk 0:03:02]}  c5 {[%clk 0:02:55]} 7. Nf3 {[%clk 0:02:55]}  cxd4 {[%clk 0:02:52]} 8. Qxd4 {[%clk 0:02:55]}  O-O {[%clk 0:02:52]} 9. Bg2 {[%clk 0:02:52]}  Nc6 {[%clk 0:02:52]} 10. Qd2 {[%clk 0:02:49]}  d5 {[%clk 0:02:47]} 11. Nc3 {[%clk 0:02:38]}  d4 {[%clk 0:02:47]} 12. Ne4 {[%clk 0:02:39]}  Bf5 {[%clk 0:02:44]} 13. Ng3 {[%clk 0:02:38]}  Rc8 {[%clk 0:02:43]} 14. O-O {[%clk 0:02:31]}  e5 {[%clk 0:02:38]} 15. Rfd1 {[%clk 0:02:27]}  Qb6 {[%clk 0:02:30]} 16. Nh4 {[%clk 0:02:13]}  Nb4 {[%clk 0:02:28]} 17. Nhxf5 {[%clk 0:02:03]}  Nxf5 {[%clk 0:02:28]} 18. Be4 {[%clk 0:01:52]}  Nxg3 {[%clk 0:02:25]} 19. hxg3 {[%clk 0:01:52]}  Rc3 {[%clk 0:02:10]} 20. Kg2 {[%clk 0:01:47]}  f5 {[%clk 0:01:59]} 21. gxf6 {[%clk 0:01:42]}  Qxf6 {[%clk 0:02:00]} 22. Rf1 {[%clk 0:01:25]}  Rfc8 {[%clk 0:01:25]} 23. Bxb7 {[%clk 0:01:21]}  R8c7 {[%clk 0:01:25]} 24. Be4 {[%clk 0:01:19]}  Nxc2 {[%clk 0:01:23]} 25. Rac1 {[%clk 0:01:17]}  Nb4 {[%clk 0:01:05]} 26. a3 {[%clk 0:01:16]}  Na6 {[%clk 0:00:54]} 27. b4 {[%clk 0:01:13]}  Nb8 {[%clk 0:00:52]} 28. Rxc3 {[%clk 0:01:09]}  Rxc3 {[%clk 0:00:53]} 29. Rc1 {[%clk 0:01:09]}  Rxc1 {[%clk 0:00:41]} 30. Qxc1 {[%clk 0:01:09]}  Qd6 {[%clk 0:00:41]} 31. Qc8+ {[%clk 0:01:02]}  Kg7 {[%clk 0:00:37]} 32. Qb7+ {[%clk 0:01:03]}  Kh6 {[%clk 0:00:37]} 33. Qxa7 {[%clk 0:01:02]}  Nd7 {[%clk 0:00:38]} 34. Qb7 {[%clk 0:00:54]}  Nf6 {[%clk 0:00:36]} 35. Qc6 {[%clk 0:00:54]}  Qe7 {[%clk 0:00:33]} 36. Qb7 {[%clk 0:00:38]}  Qe6 {[%clk 0:00:28]} 37. a4 {[%clk 0:00:36]}  Qg4 {[%clk 0:00:22]} 38. Bf3 {[%clk 0:00:27]}  Qf5 {[%clk 0:00:22]} 39. a5 {[%clk 0:00:26]}  e4 {[%clk 0:00:22]} 40. a6 {[%clk 0:00:26]}  d3 {[%clk 0:00:09]} 41. a7 {[%clk 0:00:22]}  exf3+ {[%clk 0:00:09]} 42. exf3 {[%clk 0:00:03]}  d2 {[%clk 0:00:09]} 43. a8=Q {[%clk 0:00:04]}  d1=Q {[%clk 0:00:09]} 44. Qf8+ {[%clk 0:00:05]}  Kg5 {[%clk 0:00:08]} 45. f4+ {[%clk 0:00:02]}  Kh5 {[%clk 0:00:07]} 46. Qfe7 {[%clk 0:00:01]}  Qfd5+ {[%clk 0:00:05]} 47. Qxd5+ {[%clk 0:00:01]}  Qxd5+ {[%clk 0:00:06]} 48. Kh2 {[%clk 0:00:01]}  Ng4+ {[%clk 0:00:06]} 49. Kg1 {[%clk 0:00:02]}  Qd1+ {[%clk 0:00:04]} 50. Kg2 {[%clk 0:00:02]}  Qd5+ {[%clk 0:00:04]} 51. Kg1 {[%clk 0:00:03]}  Qd1+ {[%clk 0:00:02]} 52. Kg2 {[%clk 0:00:04]}  Qd5+ {[%clk 0:00:03]} 53. Kg1 {[%clk 0:00:05]} 1/2-1/2


[Site "https://www.chess.com"]